bitfinex-derivatives/quotes_BNBF0:USTF0_20260110
["timestamp","ask_amount","ask_price","bid_price","bid_amount"]
[1768035550490,0.19222908,905.76,904.38,0.69597693]
[1768035550690,0.19222908,905.76,904.39,0.69597693]
[1768035550890,0.19222908,905.76,904.4,0.69597693]
[1768035551192,0.19222908,905.76,904.41,0.69597693]
[1768035551392,0.19222908,905.76,904.42,0.69597693]
[1768035551592,0.19222908,905.76,904.43,0.69606525]
[1768035551892,0.19222908,905.76,904.44,0.69605457]
[1768035552092,0.19222908,905.76,904.45,0.69605457]
[1768035552297,0.19222908,905.76,904.46,0.69605457]
[1768035552496,0.19222908,905.76,904.47,0.69605457]
[1768035552695,0.19222908,905.76,904.48,0.69605457]
[1768035552893,0.19222908,905.76,904.49,0.69605457]
[1768035553094,0.19222908,905.76,904.5,0.69605457]
[1768035553392,0.19222908,905.76,904.51,0.69605457]
[1768035553596,0.19222908,905.76,904.52,0.69605457]
[1768035553796,0.19222908,905.76,904.53,0.69605457]
[1768035553998,0.19222908,905.76,904.54,0.69605457]
[1768035554198,0.19222908,905.76,904.55,0.69605457]
[1768035554399,0.19222908,905.76,904.56,0.69605457]
[1768035554595,0.19222908,905.76,904.27,0.82945811]
[1768035554896,0.19222908,905.76,904.28,0.696044]
[1768035555196,0.19222908,905.76,904.29,0.696044]
[1768035555496,0.19222908,905.76,904.3,0.696044]
[1768035555701,0.19222908,905.76,904.31,0.696044]
[1768035555895,0.19222908,905.76,904.32,0.696044]
[1768035556196,0.19222908,905.76,904.33,0.696044]
[1768035556401,0.19222908,905.76,904.34,0.696044]
[1768035556600,0.19222908,905.76,904.35,0.696044]
[1768035556800,0.19222908,905.76,904.36,0.696044]
[1768035557000,0.19222908,905.76,904.37,0.696044]
[1768035557200,0.19222908,905.76,904.38,0.696044]
[1768035557398,0.19222908,905.76,904.39,0.696044]
[1768035557597,0.19222908,905.76,904.4,0.696044]
[1768035557803,0.19222908,905.76,904.24,1.834]
[1768035558000,0.19222908,905.76,904.25,0.69610563]
[1768035558200,0.19222908,905.76,904.26,0.69610563]
[1768035558404,0.19222908,905.76,904.27,0.69610563]
[1768035558605,0.19222908,905.76,904.28,0.69610563]
[1768035558905,0.19222908,905.76,904.29,0.69610563]
[1768035559106,0.19222908,905.76,904.3,0.69610563]
[1768035559306,0.19222908,905.76,904.24,1.834]
[1768035559502,0.19222908,905.76,904.25,0.6957126]
[1768035559805,0.19222908,905.76,904.26,0.6957126]
[1768035560002,0.19222908,905.76,904.27,0.6957126]
[1768035560205,0.19222908,905.76,904.28,0.6957126]
[1768035560406,0.19222908,905.76,904.29,0.6957126]
[1768035560705,0.19222908,905.76,904.24,1.834]
[1768035560905,0.19222908,905.76,904.25,0.69557003]
[1768035561204,0.19222908,905.76,904.26,0.69557003]
[1768035561404,0.19222908,905.76,904.27,0.69557003]
[1768035561602,0.19222908,905.76,904.28,0.69557003]
[1768035561802,0.19222908,905.76,904.24,1.834]
[1768035562008,0.19222908,905.76,904.25,0.6954474]
[1768035562208,0.19222908,905.76,904.24,1.834]
[1768035562905,0.19222908,905.76,903.97,4.22791877]
[1768035563108,0.19222908,905.76,903.98,0.69533966]
[1768035563310,0.19222908,905.76,903.99,0.69533966]
[1768035563608,0.19222908,905.76,904.0,0.69533966]
[1768035563804,0.19222908,905.76,904.01,0.69533966]
[1768035564104,0.19222908,905.76,904.02,0.69533966]
[1768035564306,0.19222908,905.76,904.03,0.69533966]
[1768035564506,0.19222908,905.76,904.04,0.69533966]
[1768035564704,0.19222908,905.76,904.05,0.69533966]
[1768035565009,0.19222908,905.76,904.06,0.69533966]
[1768035565209,0.19222908,905.76,904.07,0.69533966]
[1768035565407,0.19222908,905.76,904.08,0.69533966]
[1768035565710,0.19222908,905.76,904.09,0.69533966]
[1768035565908,0.19222908,905.76,904.1,0.69533966]
[1768035566110,0.19222908,905.76,904.11,0.69533966]
[1768035566307,0.19222908,905.76,904.12,0.69533966]
[1768035566507,0.19222908,905.76,904.13,0.69533966]
[1768035566706,0.19222908,905.76,904.14,0.69533966]
[1768035566909,0.19222908,905.76,904.15,0.69533966]
[1768035567211,0.19222908,905.76,904.16,0.69533966]
[1768035567410,0.19222908,905.76,904.17,0.69533966]
[1768035567608,0.19222908,905.76,904.18,0.69533966]
[1768035567806,0.19222908,905.76,904.19,0.69533966]
[1768035568006,0.19222908,905.76,904.2,0.69533966]
[1768035568207,0.19222908,905.76,904.21,0.69533966]
[1768035568412,0.19222908,905.76,904.22,0.69533966]
[1768035568708,0.19222908,905.76,904.12,1.812]
[1768035568906,0.19222908,905.76,904.13,0.69697862]
[1768035569107,0.19222908,905.76,904.14,0.69697862]
[1768035569411,0.19222908,905.76,904.15,0.69697862]
[1768035569606,0.19222908,905.76,904.16,0.69697862]
[1768035569912,0.19222908,905.76,904.17,0.69697862]
[1768035570106,0.19222908,905.76,904.18,0.69697862]
[1768035570408,0.19222908,905.76,904.19,0.69697862]
[1768035570612,0.19222908,905.76,904.2,0.69697862]
[1768035570812,0.19222908,905.76,904.21,0.69697862]
[1768035571109,0.19222908,905.76,904.22,0.69697862]
[1768035571310,0.19222908,905.76,904.12,1.812]
[1768035571510,0.19222908,905.76,904.13,0.69683609]
[1768035571713,0.19222908,905.76,904.14,0.69683609]
[1768035571911,0.19222908,905.76,904.15,0.69683609]
[1768035572110,0.19222908,905.76,904.16,0.69683609]
[1768035572310,0.19222908,905.76,904.17,0.69683609]
[1768035572609,0.19222908,905.76,904.18,0.69683609]
[1768035572909,0.19222908,905.76,904.19,0.69683609]
[1768035573110,0.19222908,905.76,904.2,0.69683609]
[1768035573308,0.19222908,905.76,904.21,0.69683609]
[1768035573512,0.19222908,905.76,904.22,0.69683609]
[1768035573714,0.19222908,905.76,904.12,1.812]
[1768035574412,2.7494907,905.73,904.12,1.812]
[1768035574816,2.7494907,905.6,904.12,1.812]
[1768035575412,2.7494907,905.62,904.12,1.812]
[1768035576418,2.7494907,905.64,904.12,1.812]
[1768035577513,2.7494907,905.73,904.12,1.812]
[1768035578617,2.7494907,905.74,904.12,1.812]
[1768035579617,2.7494907,905.75,904.12,1.812]
[1768035580715,2.94171978,905.76,904.12,1.812]
[1768035582113,2.7494907,905.68,904.12,1.812]
[1768035582721,0.19222908,905.76,904.12,1.812]
[1768035582722,2.7494907,905.69,904.12,1.812]
[1768035584220,2.7494907,905.7,904.12,1.812]
[1768035588523,2.7494907,905.71,904.12,1.812]
[1768035591525,2.7494907,905.7,904.12,1.812]
[1768035592525,2.7494907,905.52,904.12,1.812]
[1768035593629,2.7494907,905.51,904.12,1.812]
[1768035595731,2.7494907,905.52,904.12,1.812]
[1768035596634,2.7494907,905.52,903.36,0.82610648]
[1768035596933,2.7494907,905.52,903.37,0.69508052]
[1768035597134,2.7494907,905.52,903.38,0.69508052]
[1768035597330,2.7494907,905.51,903.39,0.69508052]
[1768035597533,2.7494907,905.51,903.4,0.69508052]
[1768035597832,2.7494907,905.51,903.41,0.69508052]
[1768035598134,2.7494907,905.51,903.42,0.69508052]
[1768035598333,0.19222908,905.76,903.43,0.69508052]
[1768035598334,2.7494907,905.5,903.43,0.69508052]
[1768035598534,2.7494907,905.5,903.44,0.69508052]
[1768035598735,2.7494907,905.5,903.45,0.69508052]
[1768035598935,2.7494907,905.5,903.46,0.69508052]
[1768035599235,2.7494907,905.5,903.47,0.69508052]
[1768035599434,2.7494907,905.48,903.48,0.69508052]
[1768035599632,2.7494907,905.48,903.49,0.69508052]
[1768035599835,2.7494907,905.48,903.5,0.69508052]
[1768035600032,2.7494907,905.48,903.51,0.69508052]
[1768035600234,2.7494907,905.48,903.52,0.69508052]
[1768035600437,2.7494907,905.47,903.53,0.69508052]
[1768035600637,2.7494907,905.47,903.54,0.69508052]
[1768035600934,2.7494907,905.47,903.55,0.69508052]
[1768035601135,2.7494907,905.47,903.56,0.69508052]
[1768035601338,2.7494907,905.47,903.57,0.69508052]
[1768035601537,2.7494907,905.46,903.58,0.69508052]
[1768035601734,2.7494907,905.46,903.59,0.69508052]
[1768035602036,2.7494907,905.46,903.6,0.69508052]
[1768035602235,2.7494907,905.46,903.67,0.82610648]
[1768035602438,2.7494907,905.46,903.68,0.69508052]
[1768035602734,2.7494907,905.71,903.69,0.69508052]
[1768035602938,2.7494907,905.71,903.7,0.69508052]
[1768035603137,2.7494907,905.71,903.71,0.69508052]
[1768035603338,2.7494907,905.71,903.72,0.69508052]
[1768035603538,2.7494907,905.71,903.73,0.69508052]
[1768035603738,2.7494907,905.71,903.74,0.69508052]
[1768035603938,2.7494907,905.71,903.75,0.69508052]
[1768035604135,2.7494907,905.69,903.76,0.69508052]
[1768035604435,2.7494907,905.69,903.77,0.69508052]
[1768035604638,2.7494907,905.69,903.78,0.69508052]
[1768035604934,2.7494907,905.69,903.79,0.69508052]
[1768035605136,2.7494907,905.58,903.8,0.69508052]
[1768035605336,2.7494907,905.58,903.51,2.203]
[1768035605536,2.7494907,905.58,903.56,0.82610648]
[1768035605835,2.7494907,905.6,903.57,0.69639519]
[1768035606039,2.7494907,905.6,903.58,0.69639519]
[1768035606340,2.7494907,905.5,903.59,0.69639519]
[1768035606538,2.7494907,905.5,903.6,0.69639519]
[1768035606834,2.7494907,905.51,903.61,0.69639519]
[1768035607033,2.7494907,905.51,903.62,0.69639519]
[1768035607236,2.7494907,905.5,903.63,0.69639519]
[1768035607440,2.7494907,905.5,903.64,0.69639519]
[1768035607638,2.7494907,905.5,903.65,0.69639519]
[1768035607939,2.7494907,905.51,903.66,0.69639519]
[1768035608239,2.7494907,905.51,903.67,0.69639519]
[1768035608439,2.7494907,905.51,903.68,0.69639519]
[1768035608739,2.7494907,905.51,903.69,0.69639519]
[1768035609040,2.7494907,905.51,903.7,0.69639519]
[1768035609241,2.7494907,905.46,903.51,2.203]
[1768035609540,2.7494907,905.46,903.52,0.69628668]
[1768035609737,2.7494907,905.47,903.53,0.69628668]
[1768035609942,2.7494907,905.47,903.54,0.69628668]
[1768035610142,2.7494907,905.47,903.55,0.69628668]
[1768035610342,2.7494907,905.46,903.56,0.69628668]
[1768035610539,2.7494907,905.46,903.57,0.69628668]
[1768035610742,2.7494907,905.46,903.58,0.69628668]
[1768035610939,0.19222908,905.76,903.59,0.69628668]
[1768035610940,2.7494907,905.47,903.59,0.69628668]
[1768035611144,2.7494907,905.47,903.6,0.69628668]
[1768035611439,2.7494907,905.47,903.61,0.69628668]
[1768035611740,2.7494907,905.47,903.62,0.69628668]
[1768035611944,2.7494907,905.47,903.63,0.69628668]
[1768035612242,2.7494907,905.47,903.64,0.69628668]
[1768035612440,0.19222908,905.76,903.65,0.69628668]
[1768035612441,2.7494907,905.44,903.65,0.69628668]
[1768035612644,2.7494907,905.44,903.66,0.69628668]
[1768035612844,2.7494907,905.44,903.51,2.203]
[1768035613042,2.7494907,905.44,903.52,0.69625054]
[1768035613245,2.7494907,905.44,903.53,0.69625054]
[1768035613545,2.7494907,905.44,903.54,0.69625054]
[1768035613841,2.7494907,905.44,903.55,0.69625054]
[1768035614145,2.7494907,905.41,903.56,0.69625054]
[1768035614343,2.7494907,905.41,903.51,2.203]
[1768035614546,2.7494907,905.34,903.52,0.69628968]
[1768035614844,2.7494907,905.34,903.53,0.69628968]
[1768035615045,2.7494907,905.34,903.54,0.69628968]
[1768035615342,2.7494907,905.34,903.55,0.69628968]
[1768035615546,2.7494907,905.34,903.56,0.69628968]
[1768035615746,2.7494907,905.34,903.51,2.203]
[1768035616043,2.7494907,905.34,903.52,0.69626824]
[1768035616246,2.7494907,905.34,903.51,2.203]
[1768035616247,2.7494907,905.34,903.53,0.69626824]
[1768035616542,2.7494907,905.34,903.54,0.69626824]
[1768035616745,2.7494907,905.34,903.55,0.69626824]
[1768035616946,2.7494907,905.34,903.56,0.69626824]
[1768035617146,2.7494907,905.34,903.51,2.203]
[1768035617344,2.7494907,905.34,903.52,0.69643983]
[1768035617544,2.7494907,905.34,903.53,0.69643983]
[1768035617745,2.7494907,905.34,903.54,0.69643983]
[1768035617944,2.7494907,905.34,903.55,0.69643983]
[1768035618143,2.7494907,905.34,903.56,0.69643983]
[1768035618346,2.7494907,905.34,903.51,2.203]
[1768035618545,2.7494907,905.34,903.52,0.69639336]
[1768035618848,2.7494907,905.32,903.53,0.69639336]
[1768035619049,2.7494907,905.32,903.54,0.69639336]
[1768035619348,2.7494907,905.32,903.51,2.203]
[1768035619548,2.7494907,905.32,903.52,0.69633102]
[1768035619746,2.7494907,905.32,903.53,0.69633102]
[1768035619949,2.7494907,905.32,903.54,0.69633102]
[1768035620245,2.7494907,905.32,903.51,2.203]
[1768035620450,2.7494907,905.32,903.52,0.69619617]
[1768035620749,2.7494907,905.33,903.53,0.69619617]
[1768035620949,2.7494907,905.33,903.25,0.82610648]
[1768035621145,2.7494907,905.33,903.26,0.69619617]
[1768035621349,2.7494907,905.33,903.27,0.69619617]
[1768035621546,2.7494907,905.33,903.28,0.69619617]
[1768035621744,2.7494907,905.33,903.24,0.82610648]
[1768035621745,2.7494907,905.34,903.29,0.69619617]
[1768035622049,2.7494907,905.34,903.3,0.69619617]
[1768035622350,2.7494907,905.34,903.31,0.69619617]
[1768035622546,2.7494907,905.34,903.32,0.69619617]
[1768035622750,2.7494907,905.34,903.33,0.69619617]
[1768035622944,2.7494907,905.34,903.34,0.69619617]
[1768035623147,2.7494907,905.34,903.35,0.69619617]
[1768035623348,2.7494907,905.35,903.36,0.69619617]
[1768035623547,2.7494907,905.35,903.37,0.69619617]
[1768035623749,2.7494907,905.35,903.38,0.69619617]
[1768035623951,2.7494907,905.35,903.39,0.69619617]
[1768035624152,2.7494907,905.35,903.4,0.69619617]
[1768035624352,2.7494907,905.35,903.41,0.69619617]
[1768035624550,2.7494907,905.35,903.42,0.69619617]
[1768035624749,2.7494907,905.35,903.43,0.69619617]
[1768035625053,2.7494907,905.35,903.44,0.69619617]
[1768035625250,2.7494907,905.35,903.45,0.69619617]
[1768035625448,2.7494907,905.35,903.46,0.69619617]
[1768035625652,2.7494907,905.35,903.47,0.69619617]
[1768035625852,2.7494907,905.35,903.48,0.69619617]
[1768035626050,2.7494907,905.35,903.49,0.69619617]
[1768035626250,2.7494907,905.35,903.5,0.69619617]
[1768035626452,2.7494907,905.36,903.51,0.69619617]
[1768035626655,0.19243637,904.89,903.38,2.296]
[1768035626852,0.19243637,904.89,903.39,0.69571139]
[1768035627052,0.19243637,904.89,903.4,0.69571139]
[1768035627251,0.19243637,904.89,903.41,0.69571139]
[1768035627456,0.19243637,904.89,903.42,0.69571139]
[1768035627652,0.19243637,904.89,903.43,0.69571139]
[1768035627856,0.19243637,904.89,903.44,0.69571139]
[1768035628054,0.19243637,904.89,903.45,0.69571139]
[1768035628354,0.19243637,904.89,903.46,0.69571139]
[1768035628558,0.19243637,904.89,903.47,0.69571139]
[1768035628758,0.19243637,904.89,903.48,0.69571139]
[1768035628958,0.19243637,904.89,903.49,0.69571139]
[1768035629258,0.19243637,904.89,903.5,0.69571139]
[1768035629459,0.19243637,904.89,903.38,2.296]
[1768035629660,0.19243637,904.89,903.39,0.69505183]
[1768035629862,0.19243637,904.89,903.4,0.69505183]
[1768035630060,0.19243637,904.89,903.41,0.69505183]
[1768035630260,0.19243637,904.89,903.42,0.69505183]
[1768035630559,0.19243637,904.89,903.43,0.69505183]
[1768035630760,0.19243637,904.89,903.44,0.69505183]
[1768035630961,0.19243637,904.89,903.45,0.69505183]
[1768035631258,0.19243637,904.89,903.46,0.69505183]
[1768035631456,0.19243637,904.89,903.47,0.69505183]
[1768035631661,0.19243637,904.89,903.48,0.69505183]
[1768035631959,0.19243637,904.89,903.49,0.69505183]
[1768035632162,0.19243637,904.89,903.38,2.296]
[1768035632363,0.19243637,904.89,903.39,0.6950645]
[1768035632558,0.19243637,904.89,903.4,0.6950645]
[1768035632860,0.19243637,904.89,903.38,2.296]
[1768035632861,0.19243637,904.89,903.41,0.6950645]
[1768035633059,0.19243637,904.89,903.42,0.6950645]
[1768035633262,0.19243637,904.89,903.43,0.6950645]
[1768035633562,0.19243637,904.89,903.44,0.6950645]
[1768035633758,0.19243637,904.89,903.45,0.6950645]
[1768035633959,0.19243637,904.89,903.46,0.6950645]
[1768035634158,0.19243637,904.89,903.47,0.6950645]
[1768035634463,0.19243637,904.89,903.38,2.296]
[1768035634658,0.19243637,904.89,903.39,0.69511996]
[1768035634858,0.19243637,904.89,903.4,0.69511996]
[1768035635157,0.19243637,904.89,903.41,0.69511996]
[1768035635356,0.19243637,904.89,903.38,2.296]
[1768035635357,0.19243637,904.89,903.42,0.69511996]
[1768035635559,0.19243637,904.89,903.43,0.69511996]
[1768035635758,0.19243637,904.89,903.44,0.69511996]
[1768035635959,0.19243637,904.89,903.45,0.69511996]
[1768035636163,0.19243637,904.89,903.46,0.69511996]
[1768035636364,0.19243637,904.89,903.47,0.69511996]
[1768035636663,0.19243637,904.89,903.48,0.69511996]
[1768035636862,0.19243637,904.89,903.38,2.296]
[1768035637058,0.19243637,904.89,903.39,0.69521829]
[1768035637265,0.19243637,904.89,903.4,0.69521829]
[1768035637466,0.19243637,904.89,903.41,0.69521829]
[1768035637665,0.19243637,904.89,903.42,0.69521829]
[1768035637867,0.19243637,904.89,903.43,0.69521829]
[1768035638067,0.19243637,904.89,903.44,0.69521829]
[1768035638265,0.19243637,904.89,903.45,0.69521829]
[1768035638469,0.19243637,904.89,903.46,0.69521829]
[1768035638670,0.19243637,904.89,903.47,0.69521829]
[1768035638869,0.19243637,904.89,903.48,0.69521829]
[1768035639070,0.19243637,904.89,903.49,0.69521829]
[1768035639367,0.19243637,904.89,903.38,2.296]
[1768035639570,0.19243637,904.89,903.39,0.69545152]
[1768035639771,0.19243637,904.89,903.4,0.69545152]
[1768035639968,0.19243637,904.89,903.41,0.69545152]
[1768035640168,0.19243637,904.89,903.42,0.69545152]
[1768035640371,0.19243637,904.89,903.43,0.69545152]
[1768035640667,0.19243637,904.89,903.44,0.69545152]
[1768035640871,0.19243637,904.89,903.45,0.69545152]
[1768035641072,0.19243637,904.89,903.46,0.69545152]
[1768035641269,0.19243637,904.89,903.47,0.69545152]
[1768035641468,0.19243637,904.89,903.48,0.69545152]
[1768035641674,0.19243637,904.89,903.49,0.69545152]
[1768035641868,0.19243637,904.89,903.5,0.69545152]
[1768035642069,0.19243637,904.89,903.38,2.296]
[1768035642273,0.19243637,904.89,903.39,0.69582978]
[1768035642569,0.19243637,904.89,903.4,0.69582978]
[1768035642771,0.19243637,904.89,903.41,0.69582978]
[1768035642972,0.19243637,904.89,903.42,0.69582978]
[1768035643175,0.19243637,904.89,903.43,0.69582978]
[1768035643375,0.19243637,904.89,903.44,0.69582978]
[1768035643577,0.19243637,904.89,903.45,0.69582978]
[1768035643779,0.19243637,904.89,903.46,0.69582978]
[1768035643973,0.19243637,904.89,903.47,0.69582978]
[1768035644177,0.19243637,904.89,903.48,0.69582978]
[1768035644477,0.19243637,904.89,903.49,0.69582978]
[1768035644677,0.19243637,904.89,903.5,0.69582978]
[1768035644874,0.19243637,904.89,903.51,0.69582978]
[1768035645074,0.19243637,904.89,903.52,0.69582978]
[1768035645275,0.19243637,904.89,903.53,0.69582978]
[1768035645473,0.19243637,904.89,903.54,0.69582978]
[1768035645775,0.19243637,904.89,903.55,0.69582978]
[1768035645978,0.19243637,904.89,903.56,0.69582978]
[1768035646176,0.19243637,904.89,903.57,0.69582978]
[1768035646377,0.19243637,904.89,903.58,0.69582978]
[1768035646573,0.19243637,904.89,903.59,0.69582978]
[1768035646773,0.19243637,904.89,903.6,0.69582978]
[1768035646973,0.19243637,904.89,903.61,0.69582978]
[1768035647174,0.19243637,904.89,903.62,0.69582978]
[1768035647377,0.19243637,904.89,903.63,0.69582978]
[1768035647578,0.19243637,904.89,903.64,0.69582978]
[1768035647777,0.19243637,904.89,903.65,0.69582978]
[1768035647978,0.19243637,904.89,903.66,0.69582978]
[1768035648179,0.19243637,904.89,903.67,0.69582978]
[1768035648480,0.19243637,904.89,903.68,0.69582978]
[1768035648679,0.19243637,904.89,903.69,0.69582978]
[1768035648873,0.19243637,904.89,903.7,0.69582978]
[1768035649076,0.19243637,904.89,903.71,0.69582978]
[1768035649278,0.19243637,904.89,903.72,0.69756942]
[1768035649477,0.19243637,904.89,903.73,0.69756942]
[1768035649779,0.19243637,904.89,903.44,0.82610648]
[1768035649978,0.19243637,904.89,903.45,0.69756981]
[1768035650176,0.19243637,904.89,903.46,0.69756981]
[1768035650376,0.19243637,904.89,903.47,0.69756981]
[1768035650580,0.19243637,904.89,903.48,0.69756981]
[1768035650780,0.19243637,904.89,903.49,0.69756981]
[1768035650980,0.19243637,904.89,903.5,0.69756981]
[1768035651180,0.19243637,904.89,903.51,0.69756981]
[1768035651379,0.19243637,904.89,903.52,0.69756981]
[1768035651581,0.19243637,904.89,903.53,0.69756981]
[1768035651781,0.19243637,904.89,903.54,0.69756981]
[1768035651981,0.19243637,904.89,903.55,0.69756981]
[1768035652183,0.19243637,904.89,903.56,0.69756981]
[1768035652386,0.19243637,904.89,903.57,0.69756981]
[1768035652583,0.19243637,904.89,903.58,0.69756981]
[1768035652781,0.19243637,904.89,903.59,0.69756981]
[1768035653082,0.19243637,904.89,903.6,0.69756981]
[1768035653282,0.19243637,904.89,903.61,0.69756981]
[1768035653587,0.19243637,904.89,903.62,0.69756981]
[1768035653783,0.19243637,904.89,903.63,0.69756981]
[1768035654084,0.19243637,904.89,903.64,0.69756981]
[1768035654284,0.19243637,904.89,903.65,0.69756981]
[1768035654487,0.19243637,904.89,903.66,0.69756981]
[1768035654687,0.19243637,904.89,903.67,0.69756981]
[1768035654986,0.19243637,904.89,903.68,0.69756981]
[1768035655188,0.19243637,904.89,903.69,0.69756981]
[1768035655387,0.19243637,904.89,903.7,0.69756981]
[1768035655586,0.19243637,904.89,903.71,0.69756981]
[1768035655783,0.19243637,904.89,903.45,0.82610648]
[1768035655784,0.19243637,904.89,903.72,0.69756981]
[1768035655990,0.19243637,904.89,903.73,0.69756981]
[1768035656183,0.19243637,904.89,903.35,0.82610648]
[1768035656388,0.19243637,904.89,903.36,0.69825858]
[1768035656589,0.19243637,904.89,903.37,0.69825858]
[1768035656788,0.19243637,904.89,903.38,0.69825858]
[1768035656989,0.19243637,904.89,903.39,0.69825858]
[1768035657189,0.19243637,904.89,903.4,0.69825858]
[1768035657384,0.19243637,904.89,903.41,0.69825858]
[1768035657690,0.19243637,904.89,903.42,0.69825858]
[1768035657886,0.19243637,904.89,903.43,0.69825858]
[1768035658089,0.19243637,904.89,903.44,0.69825858]
[1768035658289,0.19243637,904.89,903.45,0.69825858]
[1768035658486,0.19243637,904.89,903.46,0.69825858]
[1768035658686,0.19243637,904.89,903.47,0.69825858]
[1768035658989,0.19243637,904.89,903.48,0.69825858]
[1768035659190,0.19243637,904.89,903.49,0.69825858]
[1768035659388,0.19243637,904.89,903.5,0.69825858]
[1768035659590,0.19243637,904.89,903.51,0.69825858]
[1768035659790,0.19243637,904.89,903.52,0.69825858]
[1768035659990,0.19243637,904.89,903.53,0.69825858]
[1768035660190,0.19243637,904.89,903.54,0.69825858]
[1768035660489,0.19243637,904.89,903.55,0.69825858]
[1768035660689,0.19243637,904.89,903.56,0.69825858]
[1768035660886,0.19243637,904.89,903.57,0.69825858]
[1768035661186,0.19243637,904.89,903.58,0.69825858]
[1768035661389,0.19243637,904.89,903.43,2.289]
[1768035661390,0.19243637,904.89,903.59,0.69825858]
[1768035661685,0.19243637,904.89,903.6,0.69825858]
[1768035661890,0.19243637,904.89,903.61,0.69825858]
[1768035662087,0.19243637,904.89,903.62,0.69825858]
[1768035662288,0.19243637,904.89,903.63,0.69695009]
[1768035662486,0.19243637,904.89,903.43,2.289]
[1768035662685,0.19243637,904.89,903.44,0.69690663]
[1768035662888,0.19243637,904.89,903.45,0.69690663]
[1768035663090,0.19243637,904.89,903.46,0.69690663]
[1768035663286,0.19243637,904.89,903.47,0.69690663]
[1768035663484,0.19243637,904.89,903.48,0.69690663]
[1768035663685,0.19243637,904.89,903.49,0.69690663]
[1768035663986,0.19243637,904.89,903.5,0.69690663]
[1768035664190,0.19243637,904.89,903.51,0.69690663]
[1768035664490,0.19243637,904.89,903.52,0.69690663]
[1768035664687,0.19243637,904.89,903.53,0.69690663]
[1768035664890,0.19243637,904.89,903.54,0.69690663]
[1768035665092,0.19243637,904.89,903.55,0.69690663]
[1768035665291,0.19243637,904.89,903.56,0.69690663]
[1768035665489,0.19243637,904.89,903.43,2.289]
[1768035665692,0.19243637,904.89,903.44,0.69665729]
[1768035665889,0.19243637,904.89,903.45,0.69665729]
[1768035666088,0.19243637,904.89,903.46,0.69665729]
[1768035666390,0.19243637,904.89,903.47,0.69665729]
[1768035666592,0.19243637,904.89,903.48,0.69665729]
[1768035666791,0.19243637,904.89,903.49,0.69665729]
[1768035666993,0.19243637,904.89,903.5,0.69665729]
[1768035667193,0.19243637,904.89,903.51,0.69665729]
[1768035667391,0.19243637,904.89,903.52,0.69665729]
[1768035667694,0.19243637,904.89,903.53,0.69665729]
[1768035667889,0.19243637,904.89,903.54,0.69665729]
[1768035668195,0.19243637,904.89,903.55,0.69665729]
[1768035668391,0.19243637,904.89,903.56,0.69665729]
[1768035668592,0.19243637,904.89,903.57,0.69665729]
[1768035668794,0.19243637,904.89,903.43,2.289]
[1768035668995,0.19243637,904.89,903.44,0.69651327]
[1768035669198,0.19243637,904.89,903.45,0.69651327]
[1768035669398,0.19243637,904.89,903.46,0.69651327]
[1768035669602,0.19243637,904.89,903.47,0.69651327]
[1768035669800,0.19243637,904.89,903.48,0.69651327]
[1768035670003,0.19243637,904.89,903.49,0.69651327]
[1768035670203,0.19243637,904.89,903.5,0.69651327]
[1768035670404,0.19243637,904.89,903.51,0.69651327]
[1768035670601,0.19243637,904.89,903.52,0.69651327]
[1768035670904,0.19243637,904.89,903.53,0.69651327]
[1768035671102,0.19243637,904.89,903.54,0.69651327]
[1768035671302,0.19243637,904.89,903.55,0.69651327]
[1768035671606,0.19243637,904.89,903.56,0.69651327]
[1768035671807,0.19243637,904.89,903.57,0.69651327]
[1768035672003,0.19243637,904.89,903.43,2.289]
[1768035672304,0.19243637,904.89,903.44,0.69642163]
[1768035672508,0.19243637,904.89,903.45,0.69642163]
[1768035672703,0.19243637,904.89,903.46,0.69642163]
[1768035672903,0.19243637,904.89,903.47,0.69642163]
[1768035673106,0.19243637,904.89,903.48,0.69642163]
[1768035673403,0.19243637,904.89,903.49,0.69642163]
[1768035673607,0.19243637,904.89,903.43,2.289]
[1768035673608,0.19243637,904.89,903.5,0.69642163]
[1768035673806,0.19243637,904.89,903.51,0.69642163]
[1768035674007,0.19243637,904.89,903.52,0.69642163]
[1768035674207,0.19243637,904.89,903.53,0.69642163]
[1768035674407,0.19243637,904.89,903.43,2.289]
[1768035674607,0.19243637,904.89,903.44,0.69636371]
[1768035674807,0.19243637,904.89,903.45,0.69636371]
[1768035675107,0.19243637,904.89,903.46,0.69636371]
[1768035675307,0.19243637,904.89,903.47,0.69636371]
[1768035675502,0.19243637,904.89,903.48,0.69636371]
[1768035675707,0.19243637,904.89,903.49,0.69636371]
[1768035676002,0.19243637,904.89,903.5,0.69636371]
[1768035676201,0.19243637,904.89,903.51,0.69636371]
[1768035676407,0.19243637,904.89,903.52,0.69636371]
[1768035676703,0.19243637,904.89,903.53,0.69636371]
[1768035676907,0.19243637,904.89,903.54,0.69636371]
[1768035677204,0.19243637,904.89,903.55,0.69636371]
[1768035677408,0.19243637,904.89,903.43,2.289]
[1768035677605,0.19243637,904.89,903.44,0.69635209]
[1768035677803,0.19243637,904.89,903.45,0.69635209]